[Event "III Menorca Open-A 2024"]
[Site "Ciutadella Menorca"]
[Date "2024.04.06"]
[Round "8.11"]
[White "Szpar, Milosz"]
[Black "Karthik Venkataraman"]
[Result "1-0"]
[ECO "C77"]
[WhiteElo "2495"]
[BlackElo "2609"]
[Annotator "TA"]
[PlyCount "55"]
[EventDate "2024.04.02"]
[EventType "swiss"]
[EventCountry "ESP"]
[SourceTitle "playchess.com"]
[Source "ChessBase"]
[SourceQuality "1"]
[TimeControl "5400+30"]

{[%evp 12,55,18,10,42,43,38,35,79,73,94,52,61,33,32,35,51,45,60,21,121,112,112,109,265,255,248,245,290,289,279,254,5414,29976,29976,29977,29977,29978,5931,2767,29985,29986,29986,1927,1625,1587]} 1. e4 {[%emt 0:00:03]} e5 {[%emt 0:00:10]} 2. Nf3 {[%emt 0:00:06]} Nc6 {[%emt 0:00:09]} 3. Bb5 {[%emt 0:00:05][%cal Bf1b5,Bb5a4,Ba4b3][%mdl 32]} a6 {[%emt 0:00:04]} 4. Ba4 {[%emt 0:00:05]} Nf6 {[%emt 0:00:09]} 5. O-O {[%emt 0:00:07]} Bc5 {[%emt 0:00:07]} 6. Nc3 {[%emt 0:00:22]} b5 {[%emt 0:01:32]} 7. Bb3 {[%emt 0:00:05]} d6 {[%emt 0:00:29]} 8. Nd5 {[%emt 0:00:08]} h6 {[%emt 0:26:45]} 9. c3 {[%emt 0:01:18]} Rb8 {[%emt 0:11:49] White is slightly better.} 10. d4 {[%emt 0:02:09]} Ba7 {[%emt 0:00:06]} 11. Be3 {[%emt 0:04:06]} exd4 {[%emt 0:00:17]} 12. Nxd4 {[%emt 0:17:46]} Nxd4 {[%emt 0:00:09]} 13. cxd4 {[%emt 0:09:38] Nb4 would now be deadly.} Bb7 {[%emt 0:00:49]} 14. Nxf6+ {[%emt 0:13:54]} Qxf6 {[%emt 0:00:38]} 15. Rc1 {[%emt 0:02:57]} Rc8 {[%emt 0:01:22] [#]} (15... O-O $11) 16. Qg4 $1 $16 {[%emt 0:02:13][%cal Oe4e5] e5! is the strong threat.} h5 {[%emt 0:05:58] [#]} 17. Qh3 {[%emt 0:03:32][%cal Oe4e5] aiming for e5! White has more active pieces.} g5 $2 {[%emt 0:28:01] [#] A mistake that costs the game.} (17... Bxd4 18. Bd5 c6 19. Bxd4 Qxd4 20. Rfd1 Qxb2 21. Bxc6+ (21. Bxf7+ Kxf7 22. Qd7+ Kg8 $11) 21... Rxc6 22. Rxc6 Bxc6 23. Qc8+ (23. Rxd6 $2 Qc1+) 23... Ke7 24. Qxh8) (17... O-O $16) 18. e5 $1 $18 {[%emt 0:04:06][%cal Be4e5,Be5d6,Bd6d7][%mdl 544]} g4 {[%emt 0:01:05]} 19. Qg3 {[%emt 0:01:09]} (19. exf6 gxh3 20. Rfe1 O-O) 19... Qg6 {[%emt 0:00:20] [#]} 20. Rxc7 $3 {[%emt 0:10:49][%mdl 512]} Rxc7 {[%emt 0:11:31]} 21. exd6 {[%emt 0:00:07] Qe5+ would kill now.} Rc6 $2 {[%emt 0:01:22]} (21... Rc8 $2 22. Qe5+ $18) (21... Kd7) 22. Qe5+ {[%emt 0:00:37]} Kd7 {[%emt 0:00:04][%cal Be8d7,Bd7c8,Bc8b8,Bb8c7][%mdl 32]} 23. Qe7+ {[%emt 0:01:43]} (23. Qxh8 Rc8 24. Qe5 Re8 $16) 23... Kc8 {[%emt 0:00:07]} 24. d7+ {[%emt 0:00:18]} (24. Qxf7 $2 Qxf7 (24... Rxd6 $2 25. Qf4 $19) (24... Qxd6 $2 25. Qf5+ Qd7 26. Qe5 $19) 25. Bxf7 Rxd6 $19) 24... Kb8 {[%emt 0:00:05]} 25. Qe5+ {[%emt 0:04:14]} (25. d8=R+ Rxd8 26. Qxd8+ Rc8 $18) 25... Rd6 {[%emt 0:00:14]} 26. Qxh8+ {[%emt 0:03:28]} Kc7 {[%emt 0:00:04]} 27. Bf4 {[%emt 0:01:01]} (27. Qe8 $142 Rxd7 28. Bf4+ Qd6 29. Rc1+ (29. Bxd6+ Rxd6 30. Rc1+ Kb6 $18) 29... Bc5 30. Bxd6+ Rxd6 31. dxc5 (31. Rxc5+ Kb6 32. Qe7 Rxd4 33. Qc7+ Ka7 34. Rd5 f6 35. Rxd4 g3 36. Bd5 gxf2+ 37. Kf1 f5 38. Qxb7#) 31... Rd8 32. Qe5+ (32. Qxf7+ Rd7 33. Qf4+ Kc8 34. Be6 Kd8 35. Bxd7 Kxd7 36. Qd6+ Kc8 37. Re1 Be4 38. Rxe4 Kb7 39. Re7+ Kc8 40. Qc7#) 32... Kc6 33. Qf6+ (33. Bxf7 b4 34. Qf6+ Kc7 35. Qb6+ Kb8 36. c6 Rd7 37. cxd7 Ka8 38. d8=Q+ Bc8 39. Rxc8#) 33... Kc7 34. Qb6+ (34. Bxf7 Bc6 35. Bxh5 Rd5 36. Bxg4 a5 37. Bf3 Be8 38. Bxd5 Bd7 39. Qb6+ Kc8 40. Bb7+ Kb8 41. Ba6+ Ka8 42. Qb7#) 34... Kc8 35. Bxf7 (35. c6 Ba8 36. Re1 Bxc6 37. Qxc6+ Kb8 38. Re7 Rd7 39. Qxd7 h4 40. Re8#)) 27... Kxd7 {[%emt 0:00:16]} 28. Re1 {[%emt 0:18:24] Weighted Error Value: White=0.07 (flawless) /Black=0.58.  Mistake:       	---       	Black=3      Inaccurate:     	White=3     	Black=1      OK:         	White=6     	Black=4      Best:        	White=4     	Black=1      Strong:       	White=1     	---} 1-0

[Event "III Menorca Open-A 2024"]
[Site "Ciutadella Menorca"]
[Date "2024.04.06"]
[Round "8.12"]
[White "Xiao, Tong(Qd)"]
[Black "Albornoz Cabrera, Carlos Daniel"]
[Result "1/2-1/2"]
[ECO "B90"]
[WhiteElo "2484"]
[BlackElo "2603"]
[Annotator "TA"]
[PlyCount "64"]
[EventDate "2024.04.02"]
[EventType "swiss"]
[EventCountry "ESP"]
[SourceTitle "playchess.com"]
[Source "ChessBase"]
[SourceQuality "1"]
[TimeControl "5400+30"]

{[%evp 10,64,26,-5,0,0,0,-8,-4,-10,-15,-1,0,-14,0,-11,-7,-11,31,23,22,0,0,0,0,0,8,0,0,-14,-10,-26,-16,-18,-21,-23,-22,-20,-39,-34,0,0,-5,0,0,0,0,0,0,0,0,0,8,8,8,7,7]} 1. e4 {[%emt 0:00:02]} c5 {[%emt 0:00:04]} 2. Nf3 {[%emt 0:00:04]} d6 {[%emt 0:00:04]} 3. d4 {[%emt 0:00:04]} cxd4 {[%emt 0:00:02]} 4. Nxd4 {[%emt 0:00:04]} Nf6 {[%emt 0:00:04]} 5. Nc3 {[%emt 0:00:05]} a6 {[%emt 0:00:03]} 6. Rg1 {[%emt 0:00:05]} Nc6 {[%emt 0:00:08]} 7. g4 {[%emt 0:00:06]} h6 {[%emt 0:00:03]} 8. Be3 {[%emt 0:01:34]} Nxd4 {[%emt 0:07:31]} 9. Bxd4 {[%emt 0:00:32]} e5 {[%emt 0:00:09]} 10. Be3 {[%emt 0:00:05]} Be6 {[%emt 0:00:55]} 11. h4 {[%emt 0:08:11]} d5 {[%emt 0:11:44]} 12. exd5 {[%emt 0:00:08]} Nxd5 {[%emt 0:00:04]} 13. Nxd5 {[%emt 0:00:17]} Qxd5 {[%emt 0:00:44]} 14. Qxd5 {[%emt 0:02:09]} Bxd5 {[%emt 0:00:02]} 15. Bg2 {[%emt 0:01:18]} Bxg2 {[%emt 0:05:37]} 16. Rxg2 {[%emt 0:00:05]} h5 {[%emt 0:02:02]} 17. g5 {[%emt 0:21:22]} f5 {[%emt 0:02:48]} 18. gxf6 {[%emt 0:07:42]} gxf6 {[%emt 0:00:04]} 19. c4 {[%emt 0:02:24]} Rc8 {[%emt 0:10:11]} 20. Rc1 {[%emt 0:00:09]} Kf7 {[%emt 0:00:38]} 21. Ke2 {[%emt 0:00:59]} Be7 {[%emt 0:01:22]} 22. b3 {[%emt 0:09:01]} Rhg8 {[%emt 0:01:57]} 23. Rxg8 {[%emt 0:00:21]} Rxg8 $11 {[%emt 0:00:06][%mdl 4096] Endgame. KRB-KRB} 24. c5 {[%emt 0:00:08]} Rc8 {[%emt 0:09:27]} 25. b4 {[%emt 0:02:45] The position is equal.} f5 {[%emt 0:05:24][%cal Of5f4]} 26. f4 {[%emt 0:00:59]} e4 {[%emt 0:05:04]} 27. a4 {[%emt 0:01:49][%cal Ba2a4,Ba4b5,Bb5c6][%mdl 32]} Rg8 {[%emt 0:14:14]} 28. b5 {[%emt 0:03:24]} axb5 $1 {[%emt 0:00:14]} 29. axb5 {[%emt 0:00:04]} Rg2+ {[%emt 0:06:07]} 30. Kf1 {[%emt 0:00:41]} Rb2 {[%emt 0:00:42]} 31. c6 {[%emt 0:01:07]} bxc6 {[%emt 0:00:04]} 32. bxc6 {[%emt 0:00:05] [#] White threatens c7 and mate.} Rb8 $1 {[%emt 0:00:03] Weighted Error Value: White=0.05 (flawless) /Black=0.05 (flawless) .  Inaccurate:     	---       	Black=2      OK:         	White=13    	Black=12     Strong:       	---       	Black=2} 1/2-1/2

[Event "III Menorca Open-A 2024"]
[Site "Ciutadella Menorca"]
[Date "2024.04.06"]
[Round "8.13"]
[White "Pranav Vijay"]
[Black "Lamard, Guillaume"]
[Result "1-0"]
[ECO "C00"]
[WhiteElo "2252"]
[BlackElo "2495"]
[Annotator "RC"]
[PlyCount "145"]
[EventDate "2024.04.02"]
[EventType "swiss"]
[EventCountry "ESP"]
[SourceTitle "playchess.com"]
[Source "ChessBase"]
[SourceQuality "1"]
[TimeControl "5400+30"]

1. Nf3 {[%emt 0:00:27]} d5 {[%emt 0:00:25]} 2. g3 {[%emt 0:00:09]} e6 {[%emt 0:00:46]} 3. Bg2 {[%emt 0:00:13]} Nf6 {[%emt 0:00:05]} 4. O-O {[%emt 0:00:28]} Be7 {[%emt 0:00:03]} 5. d3 {[%emt 0:01:28]} O-O {[%emt 0:00:09]} 6. Nbd2 {[%emt 0:00:13]} c5 {[%emt 0:00:11]} 7. e4 {[%emt 0:00:12]} Nc6 {[%emt 0:00:10]} 8. Re1 {[%emt 0:03:05]} h6 {[%emt 0:00:08]} 9. e5 {[%emt 0:00:39]} Nd7 {[%emt 0:00:09]} 10. Nf1 {[%emt 0:00:13]} b6 {[%emt 0:05:35]} 11. h4 {[%emt 1:28:53]} f6 {[%emt 1:28:19]} 12. exf6 {[%emt 0:00:00]} Nxf6 {[%emt 0:00:00]} 13. Bf4 {[%emt 0:00:00]} Ng4 {[%emt 0:00:00]} 14. c3 {[%emt 0:00:00]} Rxf4 {[%emt 0:00:00]} 15. gxf4 {[%emt 0:00:00]} Qf8 {[%emt 0:00:00]} 16. Qa4 {[%emt 0:00:00]} Bd7 {[%emt 0:00:00]} 17. f5 {[%emt 0:00:00]} Nge5 {[%emt 0:00:00]} 18. Nxe5 {[%emt 0:00:00]} Nxe5 {[%emt 0:00:00]} 19. Qd1 {[%emt 0:00:00]} Qxf5 {[%emt 0:00:00]} 20. Ne3 {[%emt 0:00:00]} Qf4 {[%emt 0:00:00]} 21. Nxd5 {[%emt 0:00:00]} exd5 {[%emt 0:00:00]} 22. Bxd5+ {[%emt 0:00:00]} Kh8 {[%emt 0:00:00]} 23. Bxa8 {[%emt 0:00:00]} Bxh4 {[%emt 0:00:00]} 24. Qh5 {[%emt 0:00:00]} Bxf2+ {[%emt 0:00:00]} 25. Kh1 {[%emt 0:00:00]} Bxe1 {[%emt 0:00:00]} 26. Rxe1 {[%emt 0:00:00]} Nf7 {[%emt 0:00:00]} 27. Qh2 {[%emt 0:00:00]} Qf6 {[%emt 0:00:00]} 28. Qb8+ {[%emt 0:00:00]} Kh7 {[%emt 0:00:00]} 29. Be4+ {[%emt 0:00:00]} Bf5 {[%emt 0:00:00]} 30. Qf4 {[%emt 0:00:00]} Bxe4+ {[%emt 0:00:00]} 31. Qxe4+ {[%emt 0:00:00]} Kg8 {[%emt 0:00:00]} 32. d4 {[%emt 0:00:00]} cxd4 {[%emt 0:00:00]} 33. cxd4 {[%emt 0:00:00]} Ng5 {[%emt 0:00:00]} 34. Qd5+ {[%emt 0:00:00]} Kh7 {[%emt 0:00:00]} 35. Kg2 {[%emt 0:00:00]} Qf4 {[%emt 0:00:00]} 36. Rf1 {[%emt 0:00:59]} Qg4+ {[%emt 0:00:00]} 37. Kf2 {[%emt 0:00:09]} h5 {[%emt 0:00:00]} 38. Ke3 {[%emt 0:00:58]} Qg3+ {[%emt 0:00:00]} 39. Kd2 {[%emt 0:00:50]} h4 {[%emt 0:00:00]} 40. Qf5+ {[%emt 0:01:33]} Kh6 {[%emt 0:00:00]} 41. Rf4 {[%emt 0:02:31]} Kh5 {[%emt 0:00:00]} 42. Qf8 {[%emt 0:02:14]} h3 {[%emt 0:00:00]} 43. Qe8+ {[%emt 0:02:10]} Kh6 {[%emt 0:00:00]} 44. Qe3 {[%emt 0:01:54]} Qg2+ {[%emt 0:00:56]} 45. Kd3 {[%emt 0:00:05]} Qc6 {[%emt 0:06:45]} 46. Qe5 {[%emt 0:00:32]} Qg6+ {[%emt 0:00:49]} 47. Ke3 {[%emt 0:00:09]} Qc6 {[%emt 0:02:47]} 48. d5 {[%emt 0:01:30]} Qc1+ {[%emt 0:00:39]} 49. Kd3 {[%emt 0:00:04]} Qd1+ {[%emt 0:01:22]} 50. Kc3 {[%emt 0:00:05]} Qc1+ {[%emt 0:00:32]} 51. Kb3 {[%emt 0:00:27]} Qd1+ {[%emt 0:00:39]} 52. Ka3 {[%emt 0:00:01]} Qd3+ {[%emt 0:00:37]} 53. b3 {[%emt 0:00:31]} Qd2 {[%emt 0:01:18]} 54. Rh4+ {[%emt 0:03:54]} Kg6 {[%emt 0:00:02]} 55. Qe8+ {[%emt 0:00:03]} Kf6 {[%emt 0:01:36]} 56. Qc6+ {[%emt 0:00:09]} Kf5 {[%emt 0:00:34]} 57. d6 {[%emt 0:01:08]} Qa5+ {[%emt 0:00:29]} 58. Ra4 {[%emt 0:00:22]} Qd2 {[%emt 0:00:42]} 59. d7 {[%emt 0:00:27]} h2 {[%emt 0:00:49]} 60. Rh4 {[%emt 0:00:28]} Ne6 {[%emt 0:01:12]} 61. Qf3+ {[%emt 0:01:07]} Kg6 {[%emt 0:00:14]} 62. Qh5+ {[%emt 0:00:27]} Kf6 {[%emt 0:00:07]} 63. Rxh2 {[%emt 0:00:26]} Qd6+ {[%emt 0:01:57]} 64. Kb2 {[%emt 0:00:00]} Qd4+ {[%emt 0:00:07]} 65. Kb1 {[%emt 0:00:05]} Qd3+ {[%emt 0:02:06]} 66. Rc2 {[%emt 0:00:03]} g6 {[%emt 0:00:04]} 67. Qh8+ {[%emt 0:00:54]} Kf5 {[%emt 0:00:05]} 68. Qc3 {[%emt 0:00:54]} Qxd7 {[%emt 0:01:27]} 69. Rf2+ {[%emt 0:00:05]} Kg4 {[%emt 0:00:33]} 70. Qf3+ {[%emt 0:00:09]} Kg5 {[%emt 0:00:05]} 71. Qf6+ {[%emt 0:00:07]} Kh5 {[%emt 0:00:13]} 72. Rh2+ {[%emt 0:00:05]} Kg4 {[%emt 0:00:03]} 73. Rg2+ {[%emt 0:00:06]} 1-0

[Event "III Menorca Open-A 2024"]
[Site "Ciutadella Menorca"]
[Date "2024.04.06"]
[Round "8.14"]
[White "Idani, Pouya"]
[Black "Mamedov, Edgar"]
[Result "1-0"]
[ECO "C70"]
[WhiteElo "2609"]
[BlackElo "2317"]
[Annotator "TA"]
[PlyCount "79"]
[EventDate "2024.04.02"]
[EventType "swiss"]
[EventCountry "ESP"]
[SourceTitle "playchess.com"]
[Source "ChessBase"]
[SourceQuality "1"]
[TimeControl "5400+30"]

{[%evp 9,79,24,38,36,38,26,34,37,30,42,41,27,36,27,31,29,33,26,54,56,44,41,51,44,44,22,32,0,11,0,0,0,0,0,0,0,10,25,40,27,114,77,77,89,150,131,144,140,316,325,479,354,390,377,398,387,385,393,396,394,416,414,511,510,658,629,771,757,1358,1302,1265,801]} 1. e4 {[%emt 0:01:42]} e5 {[%emt 0:00:25]} 2. Nf3 {[%emt 0:00:07]} Nc6 {[%emt 0:00:08]} 3. Bb5 {[%emt 0:00:03]} a6 {[%emt 0:00:45]} 4. Ba4 {[%emt 0:00:22]} Bc5 {[%emt 0:00:35]} 5. c3 {[%emt 0:00:34]} Nge7 {[%emt 0:00:46]} 6. d4 {[%emt 0:00:11]} exd4 {[%emt 0:00:08]} 7. cxd4 {[%emt 0:01:59]} Bb4+ {[%emt 0:00:12]} 8. Bd2 {[%emt 0:00:40] White is slightly better.} Bxd2+ {[%emt 0:01:00]} 9. Qxd2 {[%emt 0:00:06]} d5 {[%emt 0:01:02]} 10. exd5 {[%emt 0:00:06]} Qxd5 {[%emt 0:08:50]} 11. O-O {[%emt 0:01:10]} O-O {[%emt 0:00:08]} 12. Nc3 {[%emt 0:00:03]} Qd6 {[%emt 0:00:24]} 13. d5 {[%emt 0:00:06]} Ne5 {[%emt 0:05:57]} 14. Nxe5 {[%emt 0:03:17]} Qxe5 {[%emt 0:00:24]} 15. Rfe1 {[%emt 0:00:10]} Qd6 {[%emt 0:00:16]} 16. Rad1 {[%emt 0:04:41]} b5 {[%emt 0:14:32]} 17. Bb3 {[%emt 0:05:33] Threatens to win with Ne4.} (17. Ne4 $5 Qxd5 18. Qb4 $14) 17... Bf5 {[%emt 0:03:52]} 18. Qg5 {[%emt 0:05:49]} Rfe8 {[%emt 0:01:30]} 19. Re3 {[%emt 0:00:51]} ({Wrong is} 19. Rxe7 $2 Qxe7 20. Qc1 (20. Qxf5 $2 Qe1+ 21. Rxe1 Rxe1#) 20... Rad8 $19) 19... h6 {[%emt 0:16:24]} 20. Qh5 {[%emt 0:01:22]} Bg6 {[%emt 0:14:37]} 21. Qe2 {[%emt 0:03:40]} Qd7 {[%emt 0:01:18]} 22. g4 {[%emt 0:03:31] Repels Nf5} Kh8 {[%emt 0:04:46]} 23. f4 {[%emt 0:05:32]} f5 {[%emt 0:02:09]} 24. g5 {[%emt 0:08:01]} Nc8 {[%emt 0:02:49]} (24... Ng8 $11 {remains equal.}) 25. Rxe8+ {[%emt 0:06:49]} Qxe8 {[%emt 0:00:33]} 26. gxh6 {[%emt 0:02:40] aiming for Qe5. White is much more active.} gxh6 {[%emt 0:02:44]} (26... Nd6 $142) 27. Qe5+ $16 {[%emt 0:00:31]} Qxe5 {[%emt 0:00:14]} 28. fxe5 {[%emt 0:00:05] d6 is the strong threat.} Kg7 $2 {[%emt 0:05:04] [#] This move loses the game for Black.} (28... Bh5 $16 {was called for.}) 29. Rc1 $18 {[%emt 0:05:26]} Ne7 {[%emt 0:05:07]} (29... Ra7 $142 30. Kf2 c5 31. dxc6 Re7) 30. Ne2 {[%emt 0:00:13]} Rc8 {[%emt 0:00:13]} 31. Nf4 {[%emt 0:07:59]} Bf7 {[%emt 0:00:18]} 32. Kf2 {[%emt 0:00:28]} Kf8 {[%emt 0:00:21]} 33. Ke3 {[%emt 0:01:07]} a5 {[%emt 0:00:52][%cal Ba6a5,Ba5a4][%mdl 32]} 34. Rc5 {[%emt 0:02:47]} a4 {[%emt 0:00:11]} 35. Bd1 {[%emt 0:00:04]} Rd8 {[%emt 0:00:45]} 36. Bf3 {[%emt 0:00:40] White is clearly winning.} ({Not} 36. Rxb5 Nxd5+ 37. Nxd5 Bxd5 $11) ({Worse is} 36. Rxc7 Rxd5 37. Bf3 Rxe5+ 38. Kd4 Re1 $11) 36... b4 {[%emt 0:00:04][%cal Bb5b4,Bb4a3][%mdl 32]} 37. e6 {[%emt 0:00:27]} Be8 {[%emt 0:00:04]} 38. Rxc7 {[%emt 0:00:13]} a3 {[%emt 0:00:05]} 39. bxa3 {[%emt 0:00:27]} bxa3 {[%emt 0:00:32]} 40. Ra7 {[%emt 0:01:12] Weighted Error Value: White=0.07 (flawless) /Black=0.27 (precise) .  Loses game:     	---       	Black=1      Mistake:       	---       	Black=3      Inaccurate:     	White=1     	Black=1      OK:         	White=20    	Black=15     Best:        	---       	Black=1} 1-0

[Event "III Menorca Open-A 2024"]
[Site "Ciutadella Menorca"]
[Date "2024.04.06"]
[Round "8.15"]
[White "Macias Pino, Diego"]
[Black "Sosa, Tomas"]
[Result "0-1"]
[ECO "C54"]
[WhiteElo "2478"]
[BlackElo "2562"]
[Annotator "TA"]
[PlyCount "74"]
[EventDate "2024.04.02"]
[EventType "swiss"]
[EventCountry "ESP"]
[SourceTitle "playchess.com"]
[Source "ChessBase"]
[SourceQuality "1"]
[TimeControl "5400+30"]

{[%evp 29,74,0,0,0,0,0,251,249,267,286,275,273,417,386,396,377,369,360,341,152,162,151,151,-572,-590,-595,-660,-557,-532,-676,-679,-696,-660,-678,-393,-391,-381,-365,-320,-316,-316,-442,-436,-436,-413,-4898,-3050]} 1. e4 {[%emt 0:00:02]} e5 {[%emt 0:00:34]} 2. Nf3 {[%emt 0:00:06]} Nc6 {[%emt 0:00:06]} 3. Bc4 {[%emt 0:00:03]} Bc5 {[%emt 0:00:32]} 4. d3 {[%emt 0:00:20]} Nf6 {[%emt 0:00:47]} 5. c3 {[%emt 0:00:25]} d6 {[%emt 0:01:05]} 6. O-O {[%emt 0:00:09]} a6 {[%emt 0:00:03]} 7. a4 {[%emt 0:00:59] C54: Giuoco Piano: 4 c3 Nf6, main lines with 5 d4 and 5 d3.} Ba7 {[%emt 0:00:19]} 8. Re1 {[%emt 0:01:43] The main line 8.Re1 scores better than 8.Nbd2.} Ng4 {[%emt 0:01:57]} 9. Re2 {[%emt 0:00:58]} Qf6 {[%emt 0:00:06]} 10. b4 {[%emt 0:06:00]} Qg6 {[%emt 0:04:02]} 11. Nbd2 {[%emt 0:17:47]} f5 $146 {[%emt 0:26:40]} ({Predecessor:} 11... O-O 12. Nf1 Be6 13. Bb3 f5 14. exf5 Rxf5 15. d4 Bxb3 16. Qxb3+ Kh8 17. Qc2 Qf7 {1-0 Brodsky,D (2428)-Swiercz,D (2670) US Masters op 2019 (2)}) 12. exf5 {[%emt 0:12:28]} Bxf5 {[%emt 0:00:25]} 13. d4 {[%emt 0:02:07]} O-O-O {[%emt 0:09:11]} 14. h3 {[%emt 0:07:54]} d5 {[%emt 0:13:22]} 15. Nh4 {[%emt 0:02:21]} (15. hxg4 $16 Bc2) 15... Qh5 $1 $11 {[%emt 0:01:02]} 16. Nxf5 {[%emt 0:01:24]} (16. hxg4 $2 Bxg4 (16... Qxh4 17. gxf5 dxc4 18. b5 $14) 17. Ndf3 e4 $19 (17... dxc4 $2 18. b5 $19)) 16... Nxf2 $1 {[%emt 0:00:08]} 17. Qf1 {[%emt 0:05:29]} (17. Nxg7 $2 Nxd1 18. Nxh5 Nxc3 $19 (18... dxc4 $2 19. Nxc4 Nxc3 20. Rd2 $19)) 17... exd4 $2 {[%emt 0:07:59][%mdl 8192]} (17... Nxh3+ $11 {and Black stays safe.} 18. gxh3 dxc4 19. Nxc4 (19. Nxg7 $2 Rhg8 $17) 19... exd4) 18. Rxf2 $18 {[%emt 0:01:21]} (18. Nxg7 $2 Qg6 19. Rxf2 dxc3 $19 (19... Qxg7 20. Rf7 $11) (19... dxc4 20. Nxc4 dxc3 21. Be3 $15)) (18. Qxf2 $2 dxc3 19. Bd3 (19. Nxg7 $2 Bxf2+ 20. Rxf2 Qe5 $19) (19. Ne7+ $2 Kb8 $19) 19... Bxf2+ $19) 18... dxc3 {[%emt 0:00:19]} 19. Be2 $1 {[%emt 0:01:28]} (19. Nxg7 $2 Qg6 (19... Bxf2+ $2 20. Qxf2 cxd2 21. Nxh5 $17) 20. Bd3 Qxg7 $19 (20... Bxf2+ $2 21. Qxf2 Qxd3 22. Nf3 $19)) (19. Bd3 $6 Rhf8 20. g4 (20. Nxg7 $2 Bxf2+ 21. Kh1 Qe5 $19) (20. b5 Ne5 $17) 20... Bxf2+ 21. Kxf2 Qf7 $16 (21... Qh4+ $2 22. Kg2 $18)) 19... Qg6 {[%emt 0:08:19]} 20. Nb3 {[%emt 0:01:35]} Bxf2+ {[%emt 0:07:50]} (20... Qxf5 $2 21. Bg4 $18) (20... Kb8 $142 21. Be3 d4) 21. Qxf2 $18 {[%emt 0:00:06]} Rhf8 {[%emt 0:00:13]} 22. Bd3 {[%emt 0:10:06]} Kb8 {[%emt 0:00:49]} 23. Qc5 {[%emt 0:06:51]} Ne5 {[%emt 0:05:07]} 24. Bc2 {[%emt 0:01:07]} (24. Qxc3 Nxd3 25. Qxd3 Qxf5 26. Qxf5 Rxf5 $16) (24. Bb1 $18) 24... Nf3+ $16 {[%emt 0:01:31] [#]} 25. Kh1 $1 {[%emt 0:00:54]} Ne1 {[%emt 0:00:16] [#]} 26. g4 $2 {[%emt 0:06:53]} (26. Bg5 $1 $16 {is forced if you want to stay better.} Rde8 (26... Nxc2 27. Bxd8) 27. Rxe1 (27. Qxc3 $2 Nxc2 28. Qxc2 Rxf5 $19) 27... Rxe1+ 28. Kh2 Rxf5 29. Bf4) 26... Nxc2 $19 {[%emt 0:00:11]} 27. Bf4 {[%emt 0:00:08]} Nxa1 {[%emt 0:11:07]} 28. Bxc7+ {[%emt 0:00:08]} Ka8 {[%emt 0:00:00]} 29. Bxd8 {[%emt 0:00:04]} Rxd8 {[%emt 0:00:00]} 30. Nxa1 {[%emt 0:00:03]} d4 {[%emt 0:00:00]} 31. Nb3 {[%emt 0:01:24]} Qe8 {[%emt 0:00:28]} ({Stronger than} 31... b6 32. Qc7 Qe8 33. Qxb6 Qe4+ 34. Kh2 Qe5+ 35. Kg1 Qe1+ 36. Kg2 Qe2+ 37. Kg3 Qe5+ 38. Kh4 Qe1+ 39. Kh5 Qe8+ 40. Kh4 $11) 32. Nfxd4 {[%emt 0:03:14]} Rc8 {[%emt 0:00:00]} ({Not} 32... Qxa4 33. Qxc3 Qd7 34. Nf3 $17) 33. Qf5 {[%emt 0:00:13]} c2 {[%emt 0:00:28]} 34. Nc1 {[%emt 0:00:31]} g6 {[%emt 0:00:31]} 35. Qf2 {[%emt 0:04:19]} Qxa4 {[%emt 0:00:05]} 36. Qd2 {[%emt 0:00:06]} Rc4 {[%emt 0:00:22]} 37. Ne6 {[%emt 0:01:03]} (37. Ndb3 $142) 37... Qc6+ {[%emt 0:00:20]} 0-1